[Event "Belt and Road Women 2024"]
[Site "Yuecheng Shaoxing"]
[Date "2024.07.28"]
[Round "5.9"]
[White "Chen, Yining"]
[Black "Ni, Shiqun"]
[Result "0-1"]
[ECO "D24"]
[WhiteElo "2300"]
[BlackElo "2352"]
[Annotator "RC"]
[PlyCount "160"]
[EventDate "2024.08.01"]
[EventType "swiss"]
[EventCountry "CHN"]
[SourceTitle "playchess.com"]
[Source "ChessBase"]
[SourceQuality "1"]
[TimeControl "5400+30"]

1. d4 {[%emt 0:00:05]} d5 {[%emt 0:00:14]} 2. c4 {[%emt 0:00:16]} e6 {[%emt 0:00:10]} 3. Nf3 {[%emt 0:00:56]} Nf6 {[%emt 0:00:08]} 4. Nc3 {[%emt 0:00:10]} dxc4 {[%emt 0:00:07]} 5. e4 {[%emt 0:03:46]} Bb4 {[%emt 0:00:03]} 6. Bxc4 {[%emt 0:00:08]} Nxe4 {[%emt 0:00:03]} 7. O-O {[%emt 0:00:08]} Nf6 {[%emt 0:00:11]} 8. Qa4+ {[%emt 0:03:34]} Nc6 {[%emt 0:00:03]} 9. Ne5 {[%emt 0:05:49]} a5 {[%emt 0:00:06]} 10. Rd1 {[%emt 0:05:46]} O-O {[%emt 0:02:44]} 11. Nxc6 {[%emt 0:03:35]} bxc6 {[%emt 0:00:02]} 12. Qxc6 {[%emt 0:01:06]} Bd7 {[%emt 0:05:48]} 13. Qf3 {[%emt 0:00:15]} a4 {[%emt 0:00:44]} 14. Bg5 {[%emt 0:03:47]} h6 {[%emt 0:04:21]} 15. Bh4 {[%emt 0:05:15]} Be7 {[%emt 0:01:10]} 16. Rac1 {[%emt 0:05:13]} Rb8 {[%emt 0:00:32]} 17. b3 {[%emt 0:01:29]} axb3 {[%emt 0:05:44]} 18. Bxb3 {[%emt 0:01:01]} Rb4 {[%emt 0:11:56]} 19. Bxf6 {[%emt 0:15:30]} Bxf6 {[%emt 0:00:10]} 20. Ne4 {[%emt 0:01:53]} Ba4 {[%emt 0:09:11]} 21. Qc3 {[%emt 0:17:12]} Bxb3 {[%emt 0:08:24]} 22. axb3 {[%emt 0:00:55]} Rb6 {[%emt 0:04:10]} 23. Qc4 {[%emt 0:05:57]} c6 {[%emt 0:02:29]} 24. Qa4 {[%emt 0:01:45]} Qd5 {[%emt 0:05:24]} 25. Nxf6+ {[%emt 0:01:44]} gxf6 {[%emt 0:00:01]} 26. Rd3 {[%emt 0:01:19]} Rfb8 {[%emt 0:00:02]} 27. Rg3+ {[%emt 0:05:41]} Kh7 {[%emt 0:00:03]} 28. h3 {[%emt 0:03:34]} Rxb3 {[%emt 0:03:39]} 29. Rxb3 {[%emt 0:01:54]} Rxb3 {[%emt 0:00:40]} 30. Rc5 {[%emt 0:02:42]} Rb1+ {[%emt 0:00:54]} 31. Kh2 {[%emt 0:00:02]} Qd6+ {[%emt 0:13:09]} 32. g3 {[%emt 0:00:05]} Rb2 {[%emt 0:00:03]} 33. Rc2 {[%emt 0:03:04]} Rxc2 {[%emt 0:07:34]} 34. Qxc2+ {[%emt 0:00:02]} Kg7 {[%emt 0:00:06]} 35. Qc3 {[%emt 0:00:36]} Qd5 {[%emt 0:00:06]} 36. f4 {[%emt 0:01:06]} Qe4 {[%emt 0:00:51]} 37. Kg1 {[%emt 0:00:37]} h5 {[%emt 0:00:50]} 38. h4 {[%emt 0:00:46]} Kg6 {[%emt 0:00:17]} 39. Qc5 {[%emt 0:00:37]} Qf3 {[%emt 0:07:04]} 40. Qc2+ {[%emt 0:00:27]} Kh6 {[%emt 0:00:05]} 41. Kh2 {[%emt 0:00:06]} Kg7 {[%emt 0:00:02]} 42. Qb2 {[%emt 0:00:41]} Qd3 {[%emt 0:00:39]} 43. Qc1 {[%emt 0:00:46]} Qxd4 {[%emt 0:06:25]} 44. Qxc6 {[%emt 0:00:03]} e5 {[%emt 0:03:35]} 45. fxe5 {[%emt 0:00:26]} fxe5 {[%emt 0:00:01]} 46. Qf3 {[%emt 0:00:31]} Kg6 {[%emt 0:00:34]} 47. Qc6+ {[%emt 0:00:17]} Kg7 {[%emt 0:00:00]} 48. Qf3 {[%emt 0:00:11]} Qg4 {[%emt 0:00:23]} 49. Qe3 {[%emt 0:00:25]} Qf5 {[%emt 0:00:21]} 50. Kg2 {[%emt 0:00:17]} Kg6 {[%emt 0:00:40]} 51. Qb6+ {[%emt 0:00:22]} f6 {[%emt 0:00:28]} 52. Qd8 {[%emt 0:00:46]} Qe4+ {[%emt 0:00:22]} 53. Kh2 {[%emt 0:00:32]} Qc2+ {[%emt 0:01:01]} 54. Kg1 {[%emt 0:00:43]} Qc5+ {[%emt 0:00:24]} 55. Kh2 {[%emt 0:00:52]} Qc2+ {[%emt 0:00:42]} 56. Kg1 {[%emt 0:00:07]} Qb1+ {[%emt 0:00:02]} 57. Kh2 {[%emt 0:00:36]} Qa2+ {[%emt 0:00:03]} 58. Kg1 {[%emt 0:00:17]} Qe6 {[%emt 0:00:06]} 59. Qd3+ {[%emt 0:00:27]} e4 {[%emt 0:00:05]} 60. Qe3 {[%emt 0:00:27]} Qd5 {[%emt 0:00:52]} 61. Qf4 {[%emt 0:01:19]} Qd1+ {[%emt 0:00:20]} 62. Kg2 {[%emt 0:00:32]} Qd5 {[%emt 0:01:02]} 63. Kg1 {[%emt 0:00:53]} Qd4+ {[%emt 0:02:17]} 64. Kg2 {[%emt 0:00:10]} Qb2+ {[%emt 0:00:16]} 65. Kg1 {[%emt 0:00:27]} Qb1+ {[%emt 0:00:42]} 66. Kg2 {[%emt 0:00:13]} Qa2+ {[%emt 0:00:32]} 67. Kg1 {[%emt 0:00:15]} Qd5 {[%emt 0:00:12]} 68. Qe3 {[%emt 0:00:56]} Qd3 {[%emt 0:00:43]} 69. Qf4 {[%emt 0:00:39]} e3 {[%emt 0:00:16]} 70. Qb8 {[%emt 0:00:41]} Qd1+ {[%emt 0:00:46]} 71. Kh2 {[%emt 0:00:36]} Qc2+ {[%emt 0:00:29]} 72. Kh3 {[%emt 0:00:33]} Qf5+ {[%emt 0:00:42]} 73. Kh2 {[%emt 0:00:14]} Qe6 {[%emt 0:00:16]} 74. Qb1+ {[%emt 0:00:23]} Kg7 {[%emt 0:00:34]} 75. Qe1 {[%emt 0:00:43]} e2 {[%emt 0:00:14]} 76. Kg2 {[%emt 0:00:10]} Qe3 {[%emt 0:00:04]} 77. Kh2 {[%emt 0:00:22]} Qf3 {[%emt 0:00:25]} 78. Kg1 {[%emt 0:00:39]} Kf7 {[%emt 0:00:33]} 79. Kh2 {[%emt 0:00:47]} Qf1 {[%emt 0:00:06]} 80. Qa5 {[%emt 0:00:15]} e1=Q {[%emt 0:01:50]} 0-1

[Event "Belt and Road Women 2024"]
[Site "Yuecheng Shaoxing"]
[Date "2024.07.28"]
[Round "5.10"]
[White "Velikic, Adela"]
[Black "Zhang, Lanlin"]
[Result "0-1"]
[ECO "D36"]
[WhiteElo "2290"]
[BlackElo "2161"]
[Annotator "RC"]
[PlyCount "144"]
[EventDate "2024.08.01"]
[EventType "swiss"]
[EventCountry "CHN"]
[SourceTitle "playchess.com"]
[Source "ChessBase"]
[SourceQuality "1"]
[TimeControl "5400+30"]

1. c4 {[%emt 0:00:03]} e6 {[%emt 0:03:48]} 2. Nc3 {[%emt 0:00:35]} d5 {[%emt 0:00:16]} 3. d4 {[%emt 0:00:33]} Nf6 {[%emt 0:00:29]} 4. cxd5 {[%emt 0:00:14]} exd5 {[%emt 0:00:25]} 5. Bg5 {[%emt 0:00:17]} c6 {[%emt 0:01:52]} 6. e3 {[%emt 0:00:27]} Be7 {[%emt 0:00:10]} 7. Bd3 {[%emt 0:00:36]} O-O {[%emt 0:00:21]} 8. Qc2 {[%emt 0:01:15]} h6 {[%emt 0:03:32]} 9. Bh4 {[%emt 0:00:15]} Re8 {[%emt 0:00:40]} 10. Nf3 {[%emt 0:05:13]} Ne4 {[%emt 0:00:21]} 11. Bxe7 {[%emt 0:00:29]} Qxe7 {[%emt 0:00:04]} 12. Bxe4 {[%emt 0:00:44]} dxe4 {[%emt 0:00:05]} 13. Nd2 {[%emt 0:00:29]} f5 {[%emt 0:00:22]} 14. O-O {[%emt 0:18:49]} Nd7 {[%emt 0:01:26]} 15. Nc4 {[%emt 0:10:47]} Nf6 {[%emt 0:01:55]} 16. Rfd1 {[%emt 0:09:42]} Be6 {[%emt 0:03:38]} 17. Ne5 {[%emt 0:01:07]} Rad8 {[%emt 0:05:30]} 18. Na4 {[%emt 0:06:01]} Bd5 {[%emt 0:09:28]} 19. Rdc1 {[%emt 0:06:40]} Rc8 {[%emt 0:11:02]} 20. Qd2 {[%emt 0:07:57]} Nh5 {[%emt 0:04:48]} 21. Nc3 {[%emt 0:05:27]} Be6 {[%emt 0:01:17]} 22. Qd1 {[%emt 0:03:49]} Nf6 {[%emt 0:01:42]} 23. Qa4 {[%emt 0:01:13]} c5 {[%emt 0:11:15]} 24. Qxa7 {[%emt 0:08:01]} cxd4 {[%emt 0:00:54]} 25. exd4 {[%emt 0:01:14]} Qb4 {[%emt 0:00:45]} 26. Rab1 {[%emt 0:08:22]} Red8 {[%emt 0:05:48]} 27. Ng6 {[%emt 0:01:50]} Kh7 {[%emt 0:00:59]} 28. Nf4 {[%emt 0:00:30]} Bc4 {[%emt 0:04:10]} 29. a3 {[%emt 0:01:33]} Qd6 {[%emt 0:05:08]} 30. Nfe2 {[%emt 0:00:45]} Bd3 {[%emt 0:01:51]} 31. Ra1 {[%emt 0:00:15]} f4 {[%emt 0:00:32]} 32. Qa5 {[%emt 0:00:46]} f3 {[%emt 0:01:09]} 33. Ng3 {[%emt 0:00:20]} Qxd4 {[%emt 0:00:41]} 34. Nd1 {[%emt 0:00:37]} Rxc1 {[%emt 0:01:17]} 35. Rxc1 {[%emt 0:00:01]} Be2 {[%emt 0:06:18]} 36. Ne3 {[%emt 0:00:55]} Qxb2 {[%emt 0:00:47]} 37. Re1 {[%emt 0:00:29]} Qd2 {[%emt 0:00:37]} 38. Qxd2 {[%emt 0:00:37]} Rxd2 {[%emt 0:00:04]} 39. Rb1 {[%emt 0:00:21]} Ba6 {[%emt 0:00:43]} 40. h3 {[%emt 0:00:25]} Rd3 {[%emt 0:00:39]} 41. a4 {[%emt 0:00:18]} Rd4 {[%emt 0:00:46]} 42. Ra1 {[%emt 0:00:13]} fxg2 {[%emt 0:01:13]} 43. Ngf5 {[%emt 0:00:53]} Rb4 {[%emt 0:00:24]} 44. Kxg2 {[%emt 0:00:19]} Bd3 {[%emt 0:00:05]} 45. Rc1 {[%emt 0:00:27]} Nh5 {[%emt 0:04:37]} 46. Rc7 {[%emt 0:00:10]} Rb6 {[%emt 0:01:56]} 47. Kh2 {[%emt 0:00:30]} Ba6 {[%emt 0:01:47]} 48. Re7 {[%emt 0:00:56]} Rb4 {[%emt 0:00:28]} 49. Nxg7 {[%emt 0:00:57]} Nxg7 {[%emt 0:00:05]} 50. Nf5 {[%emt 0:00:04]} Kg6 {[%emt 0:05:15]} 51. Nxg7 {[%emt 0:00:05]} Kf6 {[%emt 0:00:48]} 52. Rc7 {[%emt 0:00:15]} Rxa4 {[%emt 0:00:05]} 53. Ne8+ {[%emt 0:00:27]} Ke5 {[%emt 0:00:16]} 54. Rh7 {[%emt 0:01:07]} b5 {[%emt 0:01:26]} 55. Rxh6 {[%emt 0:00:09]} b4 {[%emt 0:00:11]} 56. Rb6 {[%emt 0:00:41]} Bd3 {[%emt 0:00:17]} 57. h4 {[%emt 0:00:40]} Kd4 {[%emt 0:01:50]} 58. h5 {[%emt 0:00:47]} Kc3 {[%emt 0:00:34]} 59. Nf6 {[%emt 0:00:40]} b3 {[%emt 0:00:34]} 60. Nd5+ {[%emt 0:00:26]} Kb2 {[%emt 0:00:32]} 61. Ne3 {[%emt 0:00:33]} Ra5 {[%emt 0:00:30]} 62. h6 {[%emt 0:00:15]} Rh5+ {[%emt 0:00:03]} 63. Kg3 {[%emt 0:00:22]} Ka3 {[%emt 0:00:26]} 64. Nd1 {[%emt 0:00:57]} Rh1 {[%emt 0:00:03]} 65. Nc3 {[%emt 0:00:33]} b2 {[%emt 0:00:14]} 66. Kg2 {[%emt 0:00:27]} Rh5 {[%emt 0:01:01]} 67. Kg3 {[%emt 0:00:18]} e3 {[%emt 0:00:28]} 68. fxe3 {[%emt 0:00:13]} Rc5 {[%emt 0:00:03]} 69. h7 {[%emt 0:00:58]} Bxh7 {[%emt 0:00:08]} 70. Ra6+ {[%emt 0:00:35]} Kb4 {[%emt 0:01:29]} 71. Nd1 {[%emt 0:00:30]} b1=Q {[%emt 0:00:10]} 72. Rb6+ {[%emt 0:00:09]} Kc4 {[%emt 0:00:18]} 0-1

[Event "Belt and Road Women 2024"]
[Site "Yuecheng Shaoxing"]
[Date "2024.07.28"]
[Round "5.11"]
[White "Soumya, Swaminathan"]
[Black "Yang, Yijing"]
[Result "1/2-1/2"]
[ECO "B12"]
[WhiteElo "2258"]
[BlackElo "2022"]
[Annotator "RC"]
[PlyCount "110"]
[EventDate "2024.08.01"]
[EventType "swiss"]
[EventCountry "CHN"]
[SourceTitle "playchess.com"]
[Source "ChessBase"]
[SourceQuality "1"]
[TimeControl "5400+30"]

1. e4 {[%emt 0:00:31]} c6 {[%emt 0:00:06]} 2. d4 {[%emt 0:00:10]} d5 {[%emt 0:00:07]} 3. e5 {[%emt 0:00:05]} Bf5 {[%emt 0:00:06]} 4. g4 {[%emt 0:00:06]} Bg6 {[%emt 0:00:50]} 5. e6 {[%emt 0:00:28]} Qd6 {[%emt 0:17:08]} 6. exf7+ {[%emt 0:03:53]} Bxf7 {[%emt 0:00:07]} 7. Nc3 {[%emt 0:00:13]} Nd7 {[%emt 0:01:27]} 8. f4 {[%emt 0:00:10]} g5 {[%emt 0:20:20]} 9. Nh3 {[%emt 0:08:40]} gxf4 {[%emt 0:12:19]} 10. Bxf4 {[%emt 0:00:07]} e5 {[%emt 0:00:47]} 11. dxe5 {[%emt 0:00:26]} Nxe5 {[%emt 0:02:10]} 12. Qe2 {[%emt 0:01:27]} Bg7 {[%emt 0:00:12]} 13. O-O-O {[%emt 0:02:21]} Ne7 {[%emt 0:04:48]} 14. Kb1 {[%emt 0:09:06]} N7g6 {[%emt 0:03:14]} 15. Bg3 {[%emt 0:00:04]} O-O {[%emt 0:02:13]} 16. Ng5 {[%emt 0:01:00]} Qb4 {[%emt 0:00:57]} 17. a3 {[%emt 0:21:54]} Qxg4 {[%emt 0:05:31]} 18. Qe3 {[%emt 0:00:03]} Rae8 {[%emt 0:03:14]} 19. Be2 {[%emt 0:03:10]} Nc4 {[%emt 0:06:38]} 20. Qxe8 {[%emt 0:01:30]} Qxg5 {[%emt 0:00:07]} 21. Qd7 {[%emt 0:00:13]} Nxa3+ {[%emt 0:01:07]} 22. bxa3 {[%emt 0:03:27]} Bxc3 {[%emt 0:00:23]} 23. Bc7 {[%emt 0:07:22]} Qe3 {[%emt 0:02:15]} 24. Rd3 {[%emt 0:00:54]} Qc5 {[%emt 0:03:32]} 25. Rxc3 {[%emt 0:15:20]} Qxc3 {[%emt 0:00:02]} 26. Rf1 {[%emt 0:00:09]} d4 {[%emt 0:03:20]} 27. Bd6 {[%emt 0:09:05]} Ba2+ {[%emt 0:00:36]} 28. Kxa2 {[%emt 0:00:10]} Qxc2+ {[%emt 0:00:04]} 29. Ka1 {[%emt 0:00:05]} Rxf1+ {[%emt 0:00:27]} 30. Bxf1 {[%emt 0:00:02]} Qc1+ {[%emt 0:00:15]} 31. Ka2 {[%emt 0:00:02]} Qxf1 {[%emt 0:00:54]} 32. Qc8+ {[%emt 0:05:26]} Kg7 {[%emt 0:02:12]} 33. Qxb7+ {[%emt 0:00:03]} Qf7+ {[%emt 0:02:08]} 34. Qxf7+ {[%emt 0:00:04]} Kxf7 {[%emt 0:00:01]} 35. Kb3 {[%emt 0:00:16]} Ke6 {[%emt 0:00:14]} 36. Bc5 {[%emt 0:00:18]} Kd5 {[%emt 0:04:07]} 37. Bxa7 {[%emt 0:00:03]} c5 {[%emt 0:00:04]} 38. a4 {[%emt 0:00:31]} c4+ {[%emt 0:00:02]} 39. Kc2 {[%emt 0:00:57]} Ne5 {[%emt 0:00:24]} 40. a5 {[%emt 0:01:24]} Nc6 {[%emt 0:00:04]} 41. Bb6 {[%emt 0:00:15]} Nb4+ {[%emt 0:00:14]} 42. Kd1 {[%emt 0:01:34]} c3 {[%emt 0:00:18]} 43. Bd8 {[%emt 0:00:25]} d3 {[%emt 0:00:47]} 44. Be7 {[%emt 0:00:25]} Na6 {[%emt 0:00:32]} 45. Bg5 {[%emt 0:07:35]} Kc4 {[%emt 0:00:10]} 46. h4 {[%emt 0:00:40]} Kb5 {[%emt 0:03:05]} 47. Bf6 {[%emt 0:00:31]} c2+ {[%emt 0:00:27]} 48. Kd2 {[%emt 0:00:16]} Kxa5 {[%emt 0:00:04]} 49. Bg5 {[%emt 0:00:42]} Nc5 {[%emt 0:00:15]} 50. Kc3 {[%emt 0:00:15]} Kb5 {[%emt 0:04:28]} 51. Bh6 {[%emt 0:00:08]} Kc6 {[%emt 0:00:18]} 52. Kc4 {[%emt 0:00:29]} Kd6 {[%emt 0:00:40]} 53. Bf4+ {[%emt 0:00:08]} Kc6 {[%emt 0:00:10]} 54. Bh6 {[%emt 0:00:15]} Kb6 {[%emt 0:00:53]} 55. Be3 {[%emt 0:00:10]} Kc6 {[%emt 0:00:31]} 1/2-1/2

[Event "Belt and Road Women 2024"]
[Site "Yuecheng Shaoxing"]
[Date "2024.07.28"]
[Round "5.12"]
[White "Zhang, Xiao"]
[Black "Wang, Yu A."]
[Result "1/2-1/2"]
[ECO "E54"]
[WhiteElo "2193"]
[BlackElo "2234"]
[Annotator "RC"]
[PlyCount "100"]
[EventDate "2024.08.01"]
[EventType "swiss"]
[EventCountry "CHN"]
[SourceTitle "playchess.com"]
[Source "ChessBase"]
[SourceQuality "1"]
[TimeControl "5400+30"]

1. d4 {[%emt 0:00:04]} Nf6 {[%emt 0:00:01]} 2. c4 {[%emt 0:00:25]} e6 {[%emt 0:00:02]} 3. Nc3 {[%emt 0:00:34]} Bb4 {[%emt 0:00:27]} 4. e3 {[%emt 0:00:29]} O-O {[%emt 0:01:11]} 5. Bd3 {[%emt 0:00:05]} d5 {[%emt 0:01:35]} 6. Nf3 {[%emt 0:00:13]} dxc4 {[%emt 0:05:23]} 7. Bxc4 {[%emt 0:00:05]} c5 {[%emt 0:00:26]} 8. O-O {[%emt 0:00:08]} b6 {[%emt 0:02:45]} 9. a3 {[%emt 0:05:57]} Bxc3 {[%emt 0:01:37]} 10. bxc3 {[%emt 0:00:05]} Bb7 {[%emt 0:19:42]} 11. Bb2 {[%emt 0:00:30]} Qc7 {[%emt 0:08:06]} 12. Be2 {[%emt 0:01:26]} Nc6 {[%emt 0:09:20]} 13. c4 {[%emt 0:00:34]} cxd4 {[%emt 0:02:12]} 14. exd4 {[%emt 0:00:22]} Rfd8 {[%emt 0:01:28]} 15. Re1 {[%emt 0:03:09]} Rac8 {[%emt 0:03:06]} 16. Rc1 {[%emt 0:04:38]} Na5 {[%emt 0:09:05]} 17. Ne5 {[%emt 0:10:13]} Nc6 {[%emt 0:03:37]} 18. Nf3 {[%emt 0:06:47]} Na5 {[%emt 0:00:01]} 19. Ne5 {[%emt 0:04:07]} Nc6 {[%emt 0:00:02]} 20. Bd3 {[%emt 0:15:25]} Qd6 {[%emt 0:08:11]} 21. Nxc6 {[%emt 0:09:44]} Qxc6 {[%emt 0:00:02]} 22. f3 {[%emt 0:00:23]} Ne8 {[%emt 0:08:38]} 23. Qc2 {[%emt 0:02:44]} h6 {[%emt 0:00:30]} 24. Re5 {[%emt 0:03:35]} Ba6 {[%emt 0:01:46]} 25. Qc3 {[%emt 0:03:15]} f6 {[%emt 0:04:59]} 26. Re4 {[%emt 0:02:04]} Qd7 {[%emt 0:01:33]} 27. Qe1 {[%emt 0:00:51]} e5 {[%emt 0:02:06]} 28. d5 {[%emt 0:10:07]} b5 {[%emt 0:01:16]} 29. Rd1 {[%emt 0:08:38]} bxc4 {[%emt 0:00:21]} 30. Bb1 {[%emt 0:00:15]} Qb5 {[%emt 0:01:00]} 31. Bc3 {[%emt 0:04:55]} Rxd5 {[%emt 0:00:29]} 32. Rc1 {[%emt 0:00:02]} Qc5+ {[%emt 0:01:20]} 33. Kh1 {[%emt 0:00:06]} Rcd8 {[%emt 0:01:30]} 34. Bc2 {[%emt 0:00:31]} Qd6 {[%emt 0:01:27]} 35. f4 {[%emt 0:00:26]} Bb7 {[%emt 0:01:24]} 36. fxe5 {[%emt 0:00:28]} fxe5 {[%emt 0:00:02]} 37. Bxe5 {[%emt 0:00:29]} Qd7 {[%emt 0:00:16]} 38. Bf4 {[%emt 0:03:04]} Nf6 {[%emt 0:00:38]} 39. Rxc4 {[%emt 0:01:24]} Re8 {[%emt 0:01:08]} 40. Qg3 {[%emt 0:00:18]} Nh5 {[%emt 0:00:11]} 41. Qc3 {[%emt 0:01:47]} Nxf4 {[%emt 0:00:27]} 42. Rxf4 {[%emt 0:00:01]} Rd2 {[%emt 0:00:29]} 43. Bb3+ {[%emt 0:00:29]} Kh8 {[%emt 0:00:57]} 44. Rf7 {[%emt 0:00:56]} Bxg2+ {[%emt 0:00:10]} 45. Kg1 {[%emt 0:00:01]} Qg4 {[%emt 0:00:15]} 46. Qxd2 {[%emt 0:00:27]} Bd5+ {[%emt 0:01:02]} 47. Kf1 {[%emt 0:00:08]} Qh3+ {[%emt 0:00:22]} 48. Kg1 {[%emt 0:00:03]} Qg4+ {[%emt 0:00:17]} 49. Kf1 {[%emt 0:00:01]} Qh3+ {[%emt 0:00:31]} 50. Kg1 {[%emt 0:00:01]} Qg4+ {[%emt 0:00:17]} 1/2-1/2

[Event "Belt and Road Women 2024"]
[Site "Yuecheng Shaoxing"]
[Date "2024.07.28"]
[Round "5.13"]
[White "Wang, Qinxuanyi"]
[Black "Kairbekova, Amina"]
[Result "1-0"]
[ECO "E97"]
[WhiteElo "2149"]
[BlackElo "2244"]
[Annotator "RC"]
[PlyCount "81"]
[EventDate "2024.08.01"]
[EventType "swiss"]
[EventCountry "CHN"]
[SourceTitle "playchess.com"]
[Source "ChessBase"]
[SourceQuality "1"]
[TimeControl "5400+30"]

1. d4 {[%emt 0:00:03]} Nf6 {[%emt 0:01:09]} 2. c4 {[%emt 0:00:08]} g6 {[%emt 0:00:09]} 3. Nc3 {[%emt 0:00:06]} Bg7 {[%emt 0:00:02]} 4. e4 {[%emt 0:00:05]} d6 {[%emt 0:00:03]} 5. Nf3 {[%emt 0:00:05]} O-O {[%emt 0:00:04]} 6. Be2 {[%emt 0:00:04]} e5 {[%emt 0:00:10]} 7. O-O {[%emt 0:00:09]} Nc6 {[%emt 0:00:15]} 8. d5 {[%emt 0:00:04]} Ne7 {[%emt 0:00:04]} 9. b4 {[%emt 0:00:04]} Ne8 {[%emt 0:00:14]} 10. c5 {[%emt 0:00:54]} f5 {[%emt 0:00:07]} 11. Ng5 {[%emt 0:13:14]} h6 {[%emt 0:02:47]} 12. Ne6 {[%emt 0:00:00]} Bxe6 {[%emt 0:10:21]} 13. dxe6 {[%emt 0:00:21]} fxe4 {[%emt 0:01:10]} 14. cxd6 {[%emt 0:18:23]} cxd6 {[%emt 0:18:00]} 15. Nxe4 {[%emt 0:01:03]} d5 {[%emt 0:02:06]} 16. Nc5 {[%emt 0:00:00]} Nf6 {[%emt 0:05:34]} 17. Bb2 {[%emt 0:00:00]} b6 {[%emt 0:06:12]} 18. Nd3 {[%emt 0:00:00]} e4 {[%emt 0:00:00]} 19. Ne5 {[%emt 0:00:00]} Qd6 {[%emt 0:00:00]} 20. Nd7 {[%emt 0:01:41]} Nxd7 {[%emt 0:00:00]} 21. Bxg7 {[%emt 0:00:00]} Kxg7 22. exd7 Qxd7 {[%emt 0:00:30]} 23. Qd4+ {[%emt 0:00:00]} Kh7 {[%emt 0:04:48]} 24. Rfd1 {[%emt 0:00:00]} Rad8 {[%emt 0:00:51]} 25. Rac1 {[%emt 0:04:32]} Nf5 {[%emt 0:01:27]} 26. Qe5 {[%emt 0:01:10]} Rfe8 {[%emt 0:00:38]} 27. Qf4 {[%emt 0:02:07]} Re7 {[%emt 0:00:16]} 28. h4 {[%emt 0:14:55]} d4 {[%emt 0:02:14]} 29. h5 {[%emt 0:14:10]} g5 {[%emt 0:00:07]} 30. Qd2 {[%emt 0:00:14]} Ng7 {[%emt 0:07:23]} 31. Re1 {[%emt 0:06:31]} d3 {[%emt 0:10:27]} 32. Bd1 {[%emt 0:00:04]} Qd4 {[%emt 0:04:56]} 33. Rc6 {[%emt 0:05:05]} Rf8 {[%emt 0:09:25]} 34. Bb3 {[%emt 0:01:44]} b5 {[%emt 0:00:12]} 35. Rc3 {[%emt 0:11:11]} Rxf2 {[%emt 0:12:52]} 36. Qxf2 {[%emt 0:00:03]} e3 {[%emt 0:00:29]} 37. Rxe3 {[%emt 0:02:59]} Rxe3 {[%emt 0:00:05]} 38. Rc1 {[%emt 0:00:05]} g4 {[%emt 0:02:15]} 39. Bf7 {[%emt 0:00:35]} Re4 {[%emt 0:02:03]} 40. Bg6+ {[%emt 0:00:07]} Kg8 {[%emt 0:00:12]} 41. Rc8+ {[%emt 0:00:28]} 1-0

[Event "Belt and Road Women 2024"]
[Site "Yuecheng Shaoxing"]
[Date "2024.07.28"]
[Round "5.14"]
[White "Gu, Xiaobing"]
[Black "Hu, Jiani"]
[Result "1/2-1/2"]
[ECO "B42"]
[WhiteElo "2135"]
[BlackElo "2148"]
[Annotator "RC"]
[PlyCount "121"]
[EventDate "2024.08.01"]
[EventType "swiss"]
[EventCountry "CHN"]
[SourceTitle "playchess.com"]
[Source "ChessBase"]
[SourceQuality "1"]
[TimeControl "5400+30"]

1. e4 {[%emt 0:00:03]} c5 {[%emt 0:00:05]} 2. Nf3 {[%emt 0:00:09]} e6 {[%emt 0:00:08]} 3. d4 {[%emt 0:00:27]} cxd4 {[%emt 0:00:10]} 4. Nxd4 {[%emt 0:00:04]} a6 {[%emt 0:00:12]} 5. Bd3 {[%emt 0:00:30]} Qc7 {[%emt 0:00:27]} 6. O-O {[%emt 0:01:51]} Nf6 {[%emt 0:00:33]} 7. Qe2 {[%emt 0:02:08]} d6 {[%emt 0:03:45]} 8. c4 {[%emt 0:05:02]} Be7 {[%emt 0:02:09]} 9. Nc3 {[%emt 0:00:22]} O-O {[%emt 0:06:46]} 10. f4 {[%emt 0:01:57]} e5 {[%emt 0:10:13]} 11. Nf3 {[%emt 0:06:21]} Bg4 {[%emt 0:05:20]} 12. Nd5 {[%emt 0:06:59]} Qd8 {[%emt 0:07:41]} 13. Be3 {[%emt 0:07:42]} Nbd7 {[%emt 0:02:53]} 14. f5 {[%emt 0:07:50]} Nxd5 {[%emt 0:07:09]} 15. cxd5 {[%emt 0:00:05]} Bxf3 {[%emt 0:10:29]} 16. Qxf3 {[%emt 0:06:07]} Bg5 {[%emt 0:00:30]} 17. Bf2 {[%emt 0:00:09]} Rc8 {[%emt 0:04:18]} 18. Qg4 {[%emt 0:01:15]} Nc5 {[%emt 0:01:35]} 19. Rad1 {[%emt 0:02:32]} Na4 {[%emt 0:06:15]} 20. Qe2 {[%emt 0:02:10]} Qf6 {[%emt 0:10:27]} 21. g3 {[%emt 0:03:06]} h5 {[%emt 0:05:21]} 22. h4 {[%emt 0:00:52]} Bh6 {[%emt 0:00:23]} 23. Bc2 {[%emt 0:01:48]} Nxb2 {[%emt 0:00:53]} 24. Ra1 {[%emt 0:05:18]} Nc4 {[%emt 0:00:57]} 25. Bd3 {[%emt 0:00:49]} b5 {[%emt 0:01:08]} 26. Qxh5 {[%emt 0:00:28]} Be3 {[%emt 0:03:31]} 27. Bxe3 {[%emt 0:05:03]} Nxe3 {[%emt 0:00:17]} 28. Rfc1 {[%emt 0:00:08]} Qd8 {[%emt 0:03:01]} 29. Qe2 {[%emt 0:03:37]} Qb6 {[%emt 0:00:39]} 30. Kh1 {[%emt 0:00:25]} Qd4 {[%emt 0:00:30]} 31. Rab1 {[%emt 0:00:59]} Rfd8 {[%emt 0:03:04]} 32. Rxc8 {[%emt 0:03:37]} Rxc8 {[%emt 0:00:06]} 33. Re1 {[%emt 0:00:03]} Rc3 {[%emt 0:01:16]} 34. Qxe3 {[%emt 0:01:02]} Rxd3 {[%emt 0:01:16]} 35. Qxd4 {[%emt 0:02:05]} Rxd4 {[%emt 0:00:24]} 36. Re2 {[%emt 0:01:16]} g6 {[%emt 0:01:58]} 37. f6 {[%emt 0:00:39]} g5 {[%emt 0:00:38]} 38. Kg2 {[%emt 0:00:40]} g4 {[%emt 0:00:23]} 39. Kf2 {[%emt 0:03:37]} Kh7 {[%emt 0:00:08]} 40. Ke3 {[%emt 0:00:15]} Kg6 {[%emt 0:00:15]} 41. Rf2 {[%emt 0:01:06]} Ra4 {[%emt 0:00:20]} 42. Rc2 {[%emt 0:04:54]} Kxf6 {[%emt 0:00:49]} 43. Rf2+ {[%emt 0:00:30]} Kg6 {[%emt 0:00:19]} 44. Rc2 {[%emt 0:01:40]} f5 {[%emt 0:01:32]} 45. exf5+ {[%emt 0:01:48]} Kxf5 {[%emt 0:00:04]} 46. Rf2+ {[%emt 0:00:04]} Kg6 {[%emt 0:00:09]} 47. Rc2 {[%emt 0:00:04]} Ra3+ {[%emt 0:01:20]} 48. Ke4 {[%emt 0:00:15]} Ra4+ {[%emt 0:00:12]} 49. Ke3 {[%emt 0:00:05]} Kf5 {[%emt 0:02:25]} 50. Rf2+ {[%emt 0:00:10]} Kg6 {[%emt 0:00:08]} 51. Rc2 {[%emt 0:00:03]} Rd4 {[%emt 0:00:38]} 52. Rc6 {[%emt 0:00:10]} Rxd5 {[%emt 0:00:00]} 53. Rxa6 {[%emt 0:00:02]} Rd4 {[%emt 0:00:00]} 54. a3 {[%emt 0:01:17]} Kf5 {[%emt 0:00:04]} 55. Kf2 {[%emt 0:01:49]} Ke6 {[%emt 0:00:58]} 56. Ra8 {[%emt 0:02:22]} Ra4 {[%emt 0:00:36]} 57. Rg8 {[%emt 0:00:05]} Kf5 {[%emt 0:00:24]} 58. Rf8+ {[%emt 0:00:28]} Kg6 {[%emt 0:00:45]} 59. Rd8 {[%emt 0:01:17]} Rd4 {[%emt 0:00:49]} 60. Ke3 {[%emt 0:00:55]} Kf6 {[%emt 0:00:32]} 61. Rf8+ {[%emt 0:01:24]} 1/2-1/2